fUST/lending_fUST_20260507
["ID","MTS","AMOUNT","RATE_DAILY","PERIOD"]
[421766496,1778122240000,-288.33817416,0.00013013,2]
[421766485,1778122240000,-500.0,0.00013013,2]
[421766489,1778122240000,-500.0,0.00013013,2]
[421766486,1778122240000,-500.0,0.00013013,2]
[421766488,1778122240000,-500.0,0.00013013,2]
[421766492,1778122240000,-500.0,0.00013013,2]
[421766493,1778122240000,-500.0,0.00013013,2]
[421766487,1778122240000,-500.0,0.00013013,2]
[421766490,1778122240000,-500.0,0.00013013,2]
[421766491,1778122240000,-500.0,0.00013013,2]
[421766497,1778122240000,-500.0,0.00013013,2]
[421766499,1778122240000,-500.0,0.00013013,2]
[421766501,1778122240000,-500.0,0.00013013,2]
[421766498,1778122240000,-500.0,0.00013013,2]
[421766500,1778122240000,-500.0,0.00013013,2]
[421766504,1778122240000,-500.0,0.00013013,2]
[421766502,1778122240000,-500.0,0.00013013,2]
[421766503,1778122240000,-500.0,0.00013013,2]
[421766509,1778122240000,-306.93678641,0.00013013,2]
[421766507,1778122240000,-500.0,0.00013013,2]
[421766506,1778122240000,-500.0,0.00013013,2]
[421766508,1778122240000,-500.0,0.00013013,2]
[421766505,1778122240000,-500.0,0.00013013,2]
[421766510,1778122240000,-500.0,0.00013013,2]
[421766512,1778122240000,-500.0,0.00013013,2]
[421766514,1778122240000,-500.0,0.00013013,2]
[421766513,1778122240000,-500.0,0.00013013,2]
[421766519,1778122240000,-500.0,0.00013013,2]
[421766559,1778122240000,-500.0,0.00013014,2]
[421766542,1778122240000,-500.0,0.00013013,2]
[421766546,1778122240000,-500.0,0.00013013,2]
[421766601,1778122240000,-500.0,0.00013113,2]
[421766599,1778122240000,-500.0,0.00013113,2]
[421766597,1778122240000,-510.28468121,0.00013113,2]
[421766598,1778122240000,-500.0,0.00013113,2]
[421766603,1778122240000,-857.13069,0.00013113,2]
[421766604,1778122240000,-500.0,0.00013113,2]
[421766602,1778122240000,-500.0,0.00013113,2]
[421766610,1778122240000,-500.0,0.00013113,2]
[421766612,1778122240000,-500.0,0.00013113,2]
[421766611,1778122240000,-500.0,0.00013113,2]
[421766605,1778122240000,-500.0,0.00013113,2]
[421766614,1778122240000,-500.0,0.00013113,2]
[421766607,1778122240000,-500.0,0.00013113,2]
[421766595,1778122240000,-500.0,0.00013113,2]
[421766613,1778122240000,-500.0,0.00013113,2]
[421766608,1778122240000,-500.0,0.00013113,2]
[421766609,1778122240000,-500.0,0.00013113,2]
[421766615,1778122240000,-500.0,0.00013113,2]
[421766616,1778122240000,-500.0,0.00013113,2]
[421766622,1778122240000,-500.0,0.00013113,2]
[421766618,1778122240000,-500.0,0.00013113,2]
[421766619,1778122240000,-500.0,0.00013113,2]
[421766620,1778122240000,-500.0,0.00013113,2]
[421766617,1778122240000,-500.0,0.00013113,2]
[421766621,1778122240000,-500.0,0.00013113,2]
[421766623,1778122240000,-500.0,0.00013113,2]
[421766625,1778122240000,-500.0,0.00013113,2]
[421766549,1778122240000,-500.0,0.00013013,2]
[421766606,1778122240000,-500.0,0.00013113,2]
[421766600,1778122240000,-500.0,0.00013113,2]
[421766624,1778122240000,-500.0,0.00013113,2]
[421766590,1778122240000,-500.60627656,0.00013113,2]
[421766596,1778122240000,-718.36,0.00013113,2]
[421766561,1778122240000,-500.0,0.00013014,2]
[421766573,1778122240000,-500.0,0.00013014,2]
[421766563,1778122240000,-500.0,0.00013014,2]
[421766564,1778122240000,-500.0,0.00013014,2]
[421766566,1778122240000,-500.0,0.00013014,2]
[421766562,1778122240000,-500.0,0.00013014,2]
[421766565,1778122240000,-500.0,0.00013014,2]
[421766570,1778122240000,-1084.19,0.00013014,2]
[421766568,1778122240000,-500.0,0.00013014,2]
[421766572,1778122240000,-683.42,0.00013014,2]
[421766577,1778122240000,-500.0,0.00013014,2]
[421766575,1778122240000,-569.37,0.00013014,2]
[421766576,1778122240000,-500.0,0.00013014,2]
[421766560,1778122240000,-500.0,0.00013014,2]
[421766588,1778122240000,-500.0,0.00013113,2]
[421766593,1778122240000,-500.0,0.00013113,2]
[421766591,1778122240000,-500.0,0.00013113,2]
[421766594,1778122240000,-500.0,0.00013113,2]
[421766592,1778122240000,-500.0,0.00013113,2]
[421766579,1778122240000,-500.0,0.00013014,2]
[421766586,1778122240000,-500.0,0.00013113,2]
[421766589,1778122240000,-500.0,0.00013113,2]
[421766582,1778122240000,-500.0,0.00013073,2]
[421766581,1778122240000,-557.5788265,0.00013062,2]
[421766584,1778122240000,-151.0,0.000131,2]
[421766580,1778122240000,-127270.64699507,0.00013015,2]
[421766587,1778122240000,-500.47502632,0.00013113,2]
[421766583,1778122240000,-500.0,0.00013073,2]
[421766585,1778122240000,-501.81206069,0.00013113,2]
[421766670,1778122241000,-500.0,0.00013113,2]
[421766667,1778122241000,-928.03,0.00013113,2]
[421766665,1778122241000,-500.0,0.00013113,2]
[421766666,1778122241000,-500.0,0.00013113,2]
[421766663,1778122241000,-500.0,0.00013113,2]
[421766656,1778122241000,-500.0,0.00013113,2]
[421766664,1778122241000,-1062.84,0.00013113,2]
[421766661,1778122241000,-500.0,0.00013113,2]
[421766662,1778122241000,-500.0,0.00013113,2]
[421766658,1778122241000,-383.18765699,0.00013113,2]
[421766660,1778122241000,-500.0,0.00013113,2]
[421766659,1778122241000,-501.44643502,0.00013113,2]
[421766669,1778122241000,-500.0,0.00013113,2]
[421766685,1778122241000,-713.54,0.00013113,2]
[421766672,1778122241000,-500.0,0.00013113,2]
[421766671,1778122241000,-500.0,0.00013113,2]
[421766675,1778122241000,-500.0,0.00013113,2]
[421766674,1778122241000,-500.0,0.00013113,2]
[421766673,1778122241000,-500.0,0.00013113,2]
[421766677,1778122241000,-500.0,0.00013113,2]
[421766678,1778122241000,-500.0,0.00013113,2]
[421766676,1778122241000,-500.0,0.00013113,2]
[421766686,1778122241000,-500.0,0.00013113,2]
[421766687,1778122241000,-500.0,0.00013113,2]
[421766680,1778122241000,-500.0,0.00013113,2]
[421766684,1778122241000,-500.0,0.00013113,2]
[421766657,1778122241000,-500.0,0.00013113,2]
[421766668,1778122241000,-500.0,0.00013113,2]
[421766655,1778122241000,-236.38017648,0.00013113,2]
[421766631,1778122241000,-500.0,0.00013113,2]
[421766643,1778122241000,-500.0,0.00013113,2]
[421766681,1778122241000,-500.0,0.00013113,2]
[421766626,1778122241000,-500.0,0.00013113,2]
[421766627,1778122241000,-500.0,0.00013113,2]
[421766628,1778122241000,-500.0,0.00013113,2]
[421766630,1778122241000,-500.0,0.00013113,2]
[421766633,1778122241000,-500.0,0.00013113,2]
[421766638,1778122241000,-500.0,0.00013113,2]
[421766629,1778122241000,-500.0,0.00013113,2]
[421766634,1778122241000,-500.0,0.00013113,2]
[421766635,1778122241000,-500.0,0.00013113,2]
[421766632,1778122241000,-500.0,0.00013113,2]
[421766637,1778122241000,-500.0,0.00013113,2]
[421766639,1778122241000,-500.0,0.00013113,2]
[421766640,1778122241000,-500.0,0.00013113,2]
[421766636,1778122241000,-511.29876438,0.00013113,2]
[421766646,1778122241000,-500.0,0.00013113,2]
[421766641,1778122241000,-171.15645892,0.00013113,2]
[421766642,1778122241000,-500.0,0.00013113,2]
[421766647,1778122241000,-500.0,0.00013113,2]
[421766650,1778122241000,-679.14,0.00013113,2]
[421766648,1778122241000,-500.0,0.00013113,2]
[421766649,1778122241000,-500.0,0.00013113,2]
[421766651,1778122241000,-836.04,0.00013113,2]
[421766645,1778122241000,-500.0,0.00013113,2]
[421766653,1778122241000,-500.0,0.00013113,2]
[421766652,1778122241000,-500.0,0.00013113,2]
[421766644,1778122241000,-304.32339626,0.00013113,2]
[421766654,1778122241000,-500.0,0.00013113,2]
[421766679,1778122241000,-500.0,0.00013113,2]
[421766702,1778122241000,-503.10636685,0.00013214,2]
[421766683,1778122241000,-500.0,0.00013113,2]
[421766725,1778122241000,-504.22427484,0.00013214,2]
[421766713,1778122241000,-501.78529265,0.00013214,2]
[421766723,1778122241000,-502.3452371,0.00013214,2]
[421766716,1778122241000,-458.47705797,0.00013214,2]
[421766717,1778122241000,-322.38127589,0.00013214,2]
[421766720,1778122241000,-500.0,0.00013214,2]
[421766726,1778122241000,-231.02253901,0.00013214,2]
[421766727,1778122241000,-502.13740408,0.00013214,2]
[421766728,1778122241000,-501.53762349,0.00013214,2]
[421766730,1778122241000,-210.89822052,0.00013214,2]
[421766729,1778122241000,-501.90482099,0.00013214,2]
[421766738,1778122241000,-501.36689969,0.00013214,2]
[421766731,1778122241000,-508.76466049,0.00013214,2]
[421766735,1778122241000,-501.60819325,0.00013214,2]
[421766732,1778122241000,-500.0,0.00013214,2]
[421766734,1778122241000,-502.04253677,0.00013214,2]
[421766737,1778122241000,-501.96020884,0.00013214,2]
[421766736,1778122241000,-501.96646051,0.00013214,2]
[421766733,1778122241000,-622.73376564,0.00013214,2]
[421766740,1778122241000,-502.41209582,0.00013214,2]
[421766742,1778122241000,-500.0,0.00013214,2]
[421766747,1778122241000,-500.0,0.00013214,2]
[421766745,1778122241000,-503.00960501,0.00013214,2]
[421766739,1778122241000,-501.42883393,0.00013214,2]
[421766746,1778122241000,-501.56791429,0.00013214,2]
[421766744,1778122241000,-503.8541701,0.00013214,2]
[421766682,1778122241000,-320.65550033,0.00013113,2]
[421766715,1778122241000,-517.01843916,0.00013214,2]
[421766719,1778122241000,-273.30465981,0.00013214,2]
[421766741,1778122241000,-502.11715746,0.00013214,2]
[421766718,1778122241000,-500.0,0.00013214,2]
[421766724,1778122241000,-501.96694907,0.00013214,2]
[421766689,1778122241000,-500.0,0.00013113,2]
[421766698,1778122241000,-420.0,0.00013172,2]
[421766699,1778122241000,-151.0,0.000132,2]
[421766695,1778122241000,-500.0,0.00013113,2]
[421766693,1778122241000,-500.0,0.00013113,2]
[421766688,1778122241000,-501.15803996,0.00013113,2]
[421766690,1778122241000,-500.0,0.00013113,2]
[421766697,1778122241000,-724.37432935,0.00013117,2]
[421766700,1778122241000,-500.0,0.00013214,2]
[421766696,1778122241000,-501.42652876,0.00013114,2]
[421766692,1778122241000,-500.0,0.00013113,2]
[421766691,1778122241000,-500.0,0.00013113,2]
[421766701,1778122241000,-1003.94280151,0.00013214,2]
[421766694,1778122241000,-500.0,0.00013113,2]
[421766705,1778122241000,-501.96028244,0.00013214,2]
[421766703,1778122241000,-501.98882726,0.00013214,2]
[421766722,1778122241000,-502.18643964,0.00013214,2]
[421766712,1778122241000,-501.64089169,0.00013214,2]
[421766711,1778122241000,-622.7417263,0.00013214,2]
[421766710,1778122241000,-501.99649664,0.00013214,2]
[421766714,1778122241000,-500.0,0.00013214,2]
[421766709,1778122241000,-500.0,0.00013214,2]
[421766704,1778122241000,-502.92593893,0.00013214,2]
[421766743,1778122241000,-500.0,0.00013214,2]
[421766706,1778122241000,-501.34411616,0.00013214,2]
[421766721,1778122241000,-503.22273776,0.00013214,2]
[421766708,1778122241000,-501.27827151,0.00013214,2]
[421766707,1778122241000,-502.43262936,0.00013214,2]
[421766780,1778122242000,-500.0,0.00013214,2]
[421766774,1778122242000,-500.0,0.00013214,2]
[421766773,1778122242000,-500.69611838,0.00013214,2]
[421766779,1778122242000,-500.62671653,0.00013214,2]
[421766784,1778122242000,-500.0,0.00013214,2]
[421766782,1778122242000,-500.0,0.00013214,2]
[421766787,1778122242000,-500.0,0.00013214,2]
[421766783,1778122242000,-502.74354707,0.00013214,2]
[421766790,1778122242000,-501.87616083,0.00013214,2]
[421766786,1778122242000,-500.76932914,0.00013214,2]
[421766771,1778122242000,-509.92215153,0.00013214,2]
[421766781,1778122242000,-500.0,0.00013214,2]
[421766803,1778122242000,-500.0,0.00013214,2]
[421766789,1778122242000,-500.0,0.00013214,2]
[421766785,1778122242000,-500.0,0.00013214,2]
[421766792,1778122242000,-500.0,0.00013214,2]
[421766802,1778122242000,-500.0,0.00013214,2]
[421766791,1778122242000,-500.0,0.00013214,2]
[421766794,1778122242000,-500.0,0.00013214,2]
[421766793,1778122242000,-500.0,0.00013214,2]
[421766795,1778122242000,-515.88076444,0.00013214,2]
[421766797,1778122242000,-500.0,0.00013214,2]
[421766772,1778122242000,-501.63902541,0.00013214,2]
[421766796,1778122242000,-501.24374117,0.00013214,2]
[421766788,1778122242000,-500.0,0.00013214,2]
[421766769,1778122242000,-501.24257306,0.00013214,2]
[421766760,1778122242000,-503.21743282,0.00013214,2]
[421766768,1778122242000,-502.78390271,0.00013214,2]
[421766798,1778122242000,-502.43577705,0.00013214,2]
[421766751,1778122242000,-501.47970905,0.00013214,2]
[421766750,1778122242000,-500.0,0.00013214,2]
[421766749,1778122242000,-501.71502771,0.00013214,2]
[421766748,1778122242000,-500.0,0.00013214,2]
[421766752,1778122242000,-500.0,0.00013214,2]
[421766761,1778122242000,-500.61476642,0.00013214,2]
[421766762,1778122242000,-501.54422547,0.00013214,2]
[421766764,1778122242000,-501.93002274,0.00013214,2]
[421766763,1778122242000,-500.44354554,0.00013214,2]
[421766753,1778122242000,-502.06466331,0.00013214,2]
[421766775,1778122242000,-502.09543163,0.00013214,2]
[421766756,1778122242000,-583.57865478,0.00013214,2]
[421766755,1778122242000,-500.0,0.00013214,2]
[421766759,1778122242000,-500.0,0.00013214,2]
[421766757,1778122242000,-502.21191617,0.00013214,2]
[421766758,1778122242000,-491.78359701,0.00013214,2]
[421766766,1778122242000,-526.72524487,0.00013214,2]
[421766776,1778122242000,-506.66377821,0.00013214,2]
[421766777,1778122242000,-502.34336273,0.00013214,2]
[421766778,1778122242000,-500.0,0.00013214,2]
[421766765,1778122242000,-501.48270478,0.00013214,2]
[421766770,1778122242000,-500.0,0.00013214,2]
[421766767,1778122242000,-153.5796404,0.00013214,2]
[421766754,1778122242000,-405.83790603,0.00013214,2]
[421766800,1778122242000,-500.0,0.00013214,2]
[421766807,1778122242000,-500.30432804,0.00013214,2]
[421766799,1778122242000,-201.66409354,0.00013214,2]
[421766831,1778122242000,-500.0,0.00013214,2]
[421766834,1778122242000,-191.38779156,0.00013214,2]
[421766835,1778122242000,-500.0,0.00013214,2]
[421766838,1778122242000,-500.0,0.00013214,2]
[421766836,1778122242000,-500.0,0.00013214,2]
[421766837,1778122242000,-500.0,0.00013214,2]
[421766840,1778122242000,-500.0,0.00013214,2]
[421766839,1778122242000,-500.0,0.00013214,2]
[421766842,1778122242000,-500.0,0.00013214,2]
[421766841,1778122242000,-500.0,0.00013214,2]
[421766844,1778122242000,-289.5332839,0.00013214,2]
[421766843,1778122242000,-500.0,0.00013214,2]
[421766845,1778122242000,-500.0,0.00013214,2]
[421766846,1778122242000,-500.0,0.00013214,2]
[421766847,1778122242000,-500.0,0.00013214,2]
[421766850,1778122242000,-500.0,0.00013214,2]
[421766851,1778122242000,-500.0,0.00013214,2]
[421766848,1778122242000,-500.0,0.00013214,2]
[421766849,1778122242000,-500.0,0.00013214,2]
[421766852,1778122242000,-500.0,0.00013286,2]
[421766854,1778122242000,-425.70933776,0.00013286,2]
[421766853,1778122242000,-549.4500713,0.00013286,2]
[421766855,1778122242000,-500.0,0.00013286,2]
[421766801,1778122242000,-518.14157667,0.00013214,2]
[421766857,1778122242000,-500.0,0.00013286,2]
[421766833,1778122242000,-393.24053638,0.00013214,2]
[421766830,1778122242000,-500.0,0.00013214,2]
[421766856,1778122242000,-501.93240715,0.00013286,2]
[421766829,1778122242000,-500.0,0.00013214,2]
[421766804,1778122242000,-500.0,0.00013214,2]
[421766805,1778122242000,-500.0,0.00013214,2]
[421766812,1778122242000,-500.0,0.00013214,2]
[421766806,1778122242000,-639.85088517,0.00013214,2]
[421766815,1778122242000,-500.0,0.00013214,2]
[421766809,1778122242000,-502.76434096,0.00013214,2]
[421766816,1778122242000,-500.0,0.00013214,2]
[421766832,1778122242000,-500.0,0.00013214,2]
[421766810,1778122242000,-500.0,0.00013214,2]
[421766811,1778122242000,-500.0,0.00013214,2]
[421766814,1778122242000,-500.0,0.00013214,2]
[421766817,1778122242000,-500.0,0.00013214,2]
[421766808,1778122242000,-500.0,0.00013214,2]
[421766818,1778122242000,-500.0,0.00013214,2]
[421766827,1778122242000,-500.0,0.00013214,2]
[421766813,1778122242000,-500.0,0.00013214,2]
[421766823,1778122242000,-500.0,0.00013214,2]
[421766825,1778122242000,-500.0,0.00013214,2]
[421766821,1778122242000,-500.0,0.00013214,2]
[421766828,1778122242000,-500.0,0.00013214,2]
[421766820,1778122242000,-500.0,0.00013214,2]
[421766826,1778122242000,-522.18997878,0.00013214,2]
[421766824,1778122242000,-500.0,0.00013214,2]
[421766819,1778122242000,-500.0,0.00013214,2]
[421766822,1778122242000,-500.0,0.00013214,2]
[421766885,1778122243000,-502.04618265,0.00013287,2]
[421766887,1778122243000,-490.21618444,0.00013287,2]
[421766890,1778122243000,-500.0,0.00013287,2]
[421766893,1778122243000,-500.0,0.00013287,2]
[421766901,1778122243000,-500.0,0.00013287,2]
[421766903,1778122243000,-500.0,0.00013287,2]
[421766906,1778122243000,-500.0,0.00013287,2]
[421766911,1778122243000,-500.0,0.00013287,2]
[421766912,1778122243000,-500.0,0.00013287,2]
[421766913,1778122243000,-500.0,0.00013287,2]
[421766939,1778122243000,-500.0,0.00013287,2]
[421766914,1778122243000,-500.0,0.00013287,2]
[421766915,1778122243000,-500.0,0.00013287,2]
[421766917,1778122243000,-500.0,0.00013287,2]
[421766919,1778122243000,-500.0,0.00013287,2]
[421766916,1778122243000,-500.0,0.00013287,2]
[421766927,1778122243000,-500.0,0.00013287,2]
[421766921,1778122243000,-500.0,0.00013287,2]
[421766925,1778122243000,-502.47622266,0.00013287,2]
[421766924,1778122243000,-500.0,0.00013287,2]
[421766928,1778122243000,-500.0,0.00013287,2]
[421766888,1778122243000,-500.0,0.00013287,2]
[421766931,1778122243000,-500.0,0.00013287,2]
[421766909,1778122243000,-311.58518223,0.00013287,2]
[421766889,1778122243000,-490.53887334,0.00013287,2]
[421766871,1778122243000,-500.0,0.00013286,2]
[421766896,1778122243000,-549.037283,0.00013287,2]
[421766934,1778122243000,-500.0,0.00013287,2]
[421766858,1778122243000,-500.0,0.00013286,2]
[421766859,1778122243000,-500.0,0.00013286,2]
[421766860,1778122243000,-501.85619581,0.00013286,2]
[421766861,1778122243000,-501.44148008,0.00013286,2]
[421766862,1778122243000,-500.0,0.00013286,2]
[421766866,1778122243000,-500.0,0.00013286,2]
[421766865,1778122243000,-500.0,0.00013286,2]
[421766864,1778122243000,-500.0,0.00013286,2]
[421766863,1778122243000,-501.53527125,0.00013286,2]
[421766869,1778122243000,-500.0,0.00013286,2]
[421766867,1778122243000,-501.05172623,0.00013286,2]
[421766868,1778122243000,-500.0,0.00013286,2]
[421766870,1778122243000,-500.0,0.00013286,2]
[421766873,1778122243000,-603.18,0.00013286,2]
[421766877,1778122243000,-500.0,0.00013286,2]
[421766874,1778122243000,-618.01860613,0.00013286,2]
[421766875,1778122243000,-500.93192306,0.00013286,2]
[421766880,1778122243000,-617.10967803,0.00013286,2]
[421766878,1778122243000,-500.0,0.00013286,2]
[421766876,1778122243000,-501.55422652,0.00013286,2]
[421766884,1778122243000,-500.0,0.00013287,2]
[421766883,1778122243000,-502.1142458,0.00013286,2]
[421766898,1778122243000,-411.73374108,0.00013287,2]
[421766935,1778122243000,-500.0,0.00013287,2]
[421766872,1778122243000,-500.0,0.00013286,2]
[421766930,1778122243000,-500.0,0.00013287,2]
[421766962,1778122243000,-502.07939422,0.00013287,2]
[421766964,1778122243000,-502.02422239,0.00013287,2]
[421766960,1778122243000,-500.0,0.00013287,2]
[421766961,1778122243000,-501.64866725,0.00013287,2]
[421766963,1778122243000,-502.02286379,0.00013287,2]
[421766969,1778122243000,-503.00403941,0.00013287,2]
[421766974,1778122243000,-500.0,0.00013287,2]
[421766972,1778122243000,-1042.08,0.00013287,2]
[421766970,1778122243000,-317.22907581,0.00013287,2]
[421766977,1778122243000,-500.0,0.00013287,2]
[421766975,1778122243000,-500.0,0.00013287,2]
[421766958,1778122243000,-624.69066834,0.00013287,2]
[421766978,1778122243000,-502.08792902,0.00013287,2]
[421766982,1778122243000,-501.97914342,0.00013287,2]
[421766980,1778122243000,-500.71435333,0.00013287,2]
[421766984,1778122243000,-501.90539782,0.00013287,2]
[421766985,1778122243000,-502.08884892,0.00013287,2]
[421766987,1778122243000,-502.23795417,0.00013287,2]
[421766986,1778122243000,-502.08577916,0.00013287,2]
[421766989,1778122243000,-500.0,0.00013287,2]
[421766988,1778122243000,-501.90808598,0.00013287,2]
[421766990,1778122243000,-502.16179963,0.00013287,2]
[421766991,1778122243000,-503.34588275,0.00013287,2]
[421766933,1778122243000,-500.0,0.00013287,2]
[421766976,1778122243000,-501.77071987,0.00013287,2]
[421766956,1778122243000,-501.14963887,0.00013287,2]
[421766979,1778122243000,-513.55407865,0.00013287,2]
[421766957,1778122243000,-500.0,0.00013287,2]
[421766959,1778122243000,-496.15654834,0.00013287,2]
[421766929,1778122243000,-500.0,0.00013287,2]
[421766940,1778122243000,-500.0,0.00013287,2]
[421766941,1778122243000,-500.0,0.00013287,2]
[421766937,1778122243000,-500.0,0.00013287,2]
[421766932,1778122243000,-478.15031188,0.00013287,2]
[421766936,1778122243000,-500.0,0.00013287,2]
[421766943,1778122243000,-500.0,0.00013287,2]
[421766953,1778122243000,-502.15044889,0.00013287,2]
[421766944,1778122243000,-501.6778749,0.00013287,2]
[421766942,1778122243000,-501.14862988,0.00013287,2]
[421766945,1778122243000,-500.0,0.00013287,2]
[421766938,1778122243000,-502.10948997,0.00013287,2]
[421766949,1778122243000,-536.8417808,0.00013287,2]
[421766966,1778122243000,-500.0,0.00013287,2]
[421766968,1778122243000,-5180.5,0.00013287,2]
[421766967,1778122243000,-500.0,0.00013287,2]
[421766954,1778122243000,-500.0,0.00013287,2]
[421766952,1778122243000,-501.13172564,0.00013287,2]
[421766965,1778122243000,-500.0,0.00013287,2]
[421766946,1778122243000,-500.90689734,0.00013287,2]
[421766948,1778122243000,-500.0,0.00013287,2]
[421766947,1778122243000,-500.0,0.00013287,2]
[421766951,1778122243000,-501.62243101,0.00013287,2]
[421766950,1778122243000,-500.0,0.00013287,2]
[421767038,1778122244000,-500.0,0.00013387,2]
[421767035,1778122244000,-632.59899477,0.00013387,2]
[421767026,1778122244000,-500.0,0.00013387,2]
[421767037,1778122244000,-500.0,0.00013387,2]
[421767036,1778122244000,-500.0,0.00013387,2]
[421767032,1778122244000,-502.04065711,0.00013387,2]
[421767031,1778122244000,-501.86065334,0.00013387,2]
[421767033,1778122244000,-500.0,0.00013387,2]
[421767028,1778122244000,-502.0405586,0.00013387,2]
[421767025,1778122244000,-501.13406556,0.00013387,2]
[421767029,1778122244000,-857.13069,0.00013387,2]
[421767034,1778122244000,-503.88892173,0.00013387,2]
[421767040,1778122244000,-532.82881595,0.00013387,2]
[421767052,1778122244000,-502.17515108,0.00013387,2]
[421767050,1778122244000,-500.0,0.00013387,2]
[421767051,1778122244000,-583.14908566,0.00013387,2]
[421767039,1778122244000,-500.0,0.00013387,2]
[421767041,1778122244000,-500.0,0.00013387,2]
[421767042,1778122244000,-500.0,0.00013387,2]
[421767044,1778122244000,-500.0,0.00013387,2]
[421767043,1778122244000,-500.0,0.00013387,2]
[421767045,1778122244000,-502.2405557,0.00013387,2]
[421767048,1778122244000,-500.0,0.00013387,2]
[421767047,1778122244000,-500.0,0.00013387,2]
[421767046,1778122244000,-500.0,0.00013387,2]
[421767054,1778122244000,-500.0,0.00013387,2]
[421767059,1778122244000,-500.0,0.00013387,2]
[421767018,1778122244000,-152.68869861,0.00013387,2]
[421767049,1778122244000,-594.61553824,0.00013387,2]
[421767016,1778122244000,-500.0,0.00013387,2]
[421766992,1778122244000,-500.0,0.00013287,2]
[421767015,1778122244000,-499.93719911,0.00013387,2]
[421766996,1778122244000,-500.0,0.00013288,2]
[421766993,1778122244000,-502.28871332,0.00013288,2]
[421766997,1778122244000,-450.34847379,0.00013288,2]
[421766998,1778122244000,-500.0,0.00013288,2]
[421766995,1778122244000,-500.0,0.00013288,2]
[421767060,1778122244000,-501.58476997,0.00013387,2]
[421766994,1778122244000,-500.0,0.00013288,2]
[421766999,1778122244000,-501.66826812,0.00013288,2]
[421767004,1778122244000,-683.42,0.00013288,2]
[421767000,1778122244000,-500.0,0.00013288,2]
[421767003,1778122244000,-1084.19,0.00013288,2]
[421767002,1778122244000,-500.0,0.00013288,2]
[421767006,1778122244000,-569.37,0.00013288,2]
[421767001,1778122244000,-500.0,0.00013288,2]
[421767007,1778122244000,-500.0,0.00013288,2]
[421767005,1778122244000,-500.0,0.00013288,2]
[421767008,1778122244000,-504.4333038,0.00013288,2]
[421767010,1778122244000,-151.0,0.000133,2]
[421767009,1778122244000,-500.0,0.00013288,2]
[421767011,1778122244000,-19311.8635417,0.00013348,2]
[421767021,1778122244000,-500.0,0.00013387,2]
[421767023,1778122244000,-718.36,0.00013387,2]
[421767022,1778122244000,-480.41406356,0.00013387,2]
[421767024,1778122244000,-502.20019114,0.00013387,2]
[421767012,1778122244000,-1188.0815804,0.00013348,2]
[421767013,1778122244000,-1170.4028909,0.00013348,2]
[421767017,1778122244000,-502.24687737,0.00013387,2]
[421767014,1778122244000,-318.933,0.00013366,2]
[421767019,1778122244000,-502.75027404,0.00013387,2]
[421767020,1778122244000,-500.0,0.00013387,2]
[421767061,1778122244000,-502.45149531,0.00013387,2]
[421767027,1778122244000,-612.81299214,0.00013387,2]
[421767058,1778122244000,-500.0,0.00013387,2]
[421767093,1778122244000,-500.0,0.00013387,2]
[421767092,1778122244000,-500.0,0.00013387,2]
[421767102,1778122244000,-501.71200207,0.00013387,2]